Cogmind - Beta 15 @@@ ROGUE MODE // 2025.07.16 @ 03:40:18 Player: SH-pl7 Result: Self-destructed Performance ------------- Evolutions (2) 1000 Regions Visited (4) 800 Robots Destroyed (52) 260 Value Destroyed (1398) 1398 Prototype IDs (6) 120 Alien Tech Used (0) 0 Bonus (0) 0 TOTAL SCORE: 3578 Bonus ------- None Cogmind --------- Core Integrity 502/550 Matter 151/300 Energy 213/265 System Corruption 0% Temperature Cool (8) Movement Flying (26) Location -8/Materials Parts ------- > --- POWER (1) -------- Reinforced Ion Engine > --- PROPULSION (4) --- Surge Thruster Surge Thruster Surge Thruster Improved VTOL Module > --- UTILITY (3) ------ Improved Utility Shielding Hacking Suite System Shield > --- WEAPON (3) ------- Scythe > --- INVENTORY (5) ---- Light Deuterium Engine Surge Thruster Light Armor Plating Heavy Particle Gun Improved Grenade Launcher Peak State ------------ > --- POWER ------------ Reinforced Ion Engine > --- PROPULSION ------- Surge Thruster Surge Thruster Surge Thruster Surge Thruster > --- UTILITY ---------- Visual Processing Unit Hacking Suite System Shield > --- WEAPON ----------- Heavy Particle Gun Heavy Particle Gun Heavy Particle Gun > --- INVENTORY -------- Deuterium Engine Light Armor Plating System Shield [Rating: 34] Favorites ----------- Power Ion Engine Engine Ion Engine Power Core Light Nuclear Core Propulsion Light Treads Treads Light Treads Leg Aluminum Leg Flight Unit Surge Thruster Utility Small Storage Unit Device Improved Heat Sink Storage Small Storage Unit Processor Visual Processing Unit Hackware System Shield Protection Light Armor Plating Weapon Assault Rifle Energy Gun Small Laser Ballistic Gun Assault Rifle Launcher Improved Grenade Launcher Slashing Weapon Scythe Build | -11 -10 -10 -9 -8 ------- Run | Yrd Mat Min Mat Mat Slots Evolved 4 | . . . 2 2 Power . | . . . . . Propulsion 2 | . . . . 2 Utility 1 | . . . 1 . Weapon 1 | . . . 1 . Parts Attached 44 | 8 4 4 17 11 Power 7 | 1 1 1 3 1 Engine 6 | 1 . 1 3 1 Core 1 | . 1 . . . Reactor . | . . . . . Propulsion 12 | 2 . 2 3 5 Treads 5 | 2 . . 3 . Leg 2 | . . 2 . . Wheel . | . . . . . Hover . | . . . . . Flight 5 | . . . . 5 Utility 10 | 2 1 . 4 3 Device 3 | 1 1 . 1 . Storage 1 | 1 . . . . Processor 1 | . . . 1 . Hackware 2 | . . . . 2 Protection 3 | . . . 2 1 Artifact . | . . . . . Weapon 15 | 3 2 1 7 2 Energy Gun 8 | 1 . 1 6 . Energy Cannon . | . . . . . Ballistic Gun 5 | 2 2 . 1 . Ballistic Cannon . | . . . . . Launcher 1 | . . . . 1 Special Weapon . | . . . . . Impact Weapon . | . . . . . Slashing Weapon 1 | . . . . 1 Piercing Weapon . | . . . . . Special Melee Weapon . | . . . . . Unidentified Prototypes 4 | . . . 3 1 Parts Lost 3 | . . 1 2 . Power 1 | . . 1 . . Propulsion . | . . . . . Utility . | . . . . . Weapon 2 | . . . 2 . Highest Loss Streak 1 | . . 1 1 . To Critical Strikes . | . . . . . Average Backups 7 | 5 7 7 7 4 Power . | 1 1 . . 1 Propulsion 3 | 3 3 3 3 . Utility 1 | . 1 2 1 . Weapon 1 | 1 1 2 1 2 Tool/Special . | . . . . . Unused Backups 10 | . 3 . 5 2 Power 1 | . . . . 1 Propulsion 3 | . 1 . 2 . Utility 4 | . 1 . 2 1 Weapon 2 | . 1 . 1 . Tool/Special . | . . . . . Average Slot Usage (%) 95 | . 100 100 99 76 Engine 9 | . 4 11 11 8 Core 2 | . 9 2 . . Treads 16 | . 28 26 16 . Leg 2 | . . 1 5 . Flight 6 | . . . . 35 Device 7 | . 14 14 5 . Storage 9 | . 14 14 11 . Processor 4 | . . . 8 1 Hackware 3 | . . . . 17 Protection 4 | . . . 7 5 Energy Gun 11 | . . 19 17 3 Ballistic Gun 14 | . 28 8 15 . Peak Build Rating 34 | 7 11 11 23 34 Average Rating 13 | 4 8 9 13 25 On Entrance 10 | . 7 11 10 23 Naked Turns . | . . . . . Heaviest Build 27 | 14 15 15 27 21 Greatest Support 43 | 40 40 40 43 14 Greatest Overweight (x) 1 | . . . . 1 Average Overweight (x) . | . . . . . Largest Inventory Capacity 8 | 8 8 8 8 8 Average Capacity 7 | 7 8 8 8 5 Most Carried 8 | 8 8 8 8 7 Average Carried 7 | 5 7 7 7 4 Final Capacity 8 | 8 8 8 8 5 Final Carried 8 | 6 8 8 8 5 Class Distribution -------------------- 35% | Mutant 18% | Scavenger-Tank 17% | Hacker-Sprinter 15% | Tank 12% | Skirmisher Dominant Class ---------------- Mutant | -10/Materials Mutant | -10/Mines Scavenger-Tank | -9/Materials Hacker-Sprinter | -8/Materials Resources | -11 -10 -10 -9 -8 ----------- Run | Yrd Mat Min Mat Mat Matter Collected 1317 | 201 295 97 571 153 Remotely . | . . . . . Salvage Created 1736 | 26 404 176 840 290 Parts 101 | 2 22 6 53 18 Haulers Intercepted 3 | . 1 . . 2 Recyclers Shooed . | . . . . . Parts Field Recycled . | . . . . . Retrieved Matter . | . . . . . Parts Self-Destructed . | . . . . . Prevented . | . . . . . Kills | -11 -10 -10 -9 -8 ------- Run | Yrd Mat Min Mat Mat Combat Hostiles Destroyed 40 | . 9 4 22 5 Guns 36 | . 9 4 22 1 AOE 4 | . . . . 4 Classes Destroyed 9 | 1 4 . 3 1 Worker 2 | . . . 2 . Tunneler 1 | 1 . . . . Hauler 3 | . 1 . . 2 Operator 2 | . . . 2 . Watcher 4 | . 1 . 2 1 Swarmer 12 | . 3 . 9 . Grunt 20 | . 6 4 10 . Sentry 6 | . . . 3 3 Hunter 2 | . . . . 2 Best Kill Streak 5 | 1 4 2 5 4 Combat Bots Only 5 | . 3 2 5 4 Max Kills in Single Turn 2 | 1 1 1 2 2 Gunslinging 1 | . . . 1 . Exploded 2 | . . . . 2 Melee . | . . . . . Uniques/NPCs Destroyed . | . . . . . Combat | -11 -10 -10 -9 -8 -------- Run | Yrd Mat Min Mat Mat Hostile Shots Fired 186 | . 51 33 76 26 Missed 59 | . 16 7 24 12 Hits 127 | . 35 26 52 14 Melee 1 | . . 1 . . Projectile 126 | . 35 25 52 14 Critical Strikes 3 | . 1 . 2 . Damage Taken 1659 | . 441 381 662 175 Core 311 | . 123 84 56 48 Absorbed by Shields . | . . . . . Core Remaining (%) 67 | 100 . 17 86 . Volleys Fired 125 | 3 41 18 56 7 Largest 3 | 2 2 2 3 3 Hottest 165 | 40 40 105 165 165 Shots Fired 297 | 6 82 36 162 11 Gun 292 | 6 82 36 162 6 Cannon . | . . . . . Launcher 5 | . . . . 5 Special . | . . . . . Kinetic 194 | 6 82 24 82 . Thermal 80 | . . 12 62 6 Explosive 5 | . . . . 5 Electromagnetic 18 | . . . 18 . Robot Hit Streak 15 | 3 8 15 8 6 Robot Miss Streak 7 | 1 3 3 7 1 Penetration Max . | . . . . . Secondary Targets 3 | . . 1 2 . Max Gunslinging Chain 1 | . . 1 1 . Shots Hit Robots 177 | 4 52 28 74 19 Core Hits 92 | 1 24 10 42 15 Critical Kills . | . . . . . Critical Parts Destroyed 1 | . 1 . . . Critical Strikes 3 | . 1 . . 2 Destroy 1 | . 1 . . . Sever 2 | . . . . 2 Melee Attacks 18 | . . . . 18 Impact . | . . . . . Slashing 18 | . . . . 18 Piercing . | . . . . . Sneak Attacks 2 | . . . . 2 Combat Hostiles . | . . . . . Follow-up Attacks . | . . . . . Damage Inflicted 2891 | 48 525 357 1192 769 Guns 2044 | 48 525 357 1062 52 Cannons . | . . . . . Explosions 332 | . . . 130 202 Melee 515 | . . . . 515 Ramming . | . . . . . Kinetic 1217 | 48 525 215 429 . Thermal 699 | . . 142 505 52 Explosive 202 | . . . . 202 Electromagnetic 258 | . . . 258 . Impact . | . . . . . Slashing 515 | . . . . 515 Piercing . | . . . . . Highest Corruption 3 | . . . 3 . Average Corruption 3 | . . . 3 . Corruption Purged . | . . . . . Corruption Blocked . | . . . . . Overload Shots . | . . . . . Overflow Damage 47 | . . . 35 12 Projectiles . | . . . . . Explosions 35 | . . . 35 . Melee 12 | . . . . 12 Knockbacks . | . . . . . Impact . | . . . . . Kinetic . | . . . . . Secondary . | . . . . . Self-Inflicted Damage 65 | . . . 65 . Shots 2 | . . . 2 . Rammed . | . . . . . Targets Rammed . | . . . . . Kicked . | . . . . . Crushed . | . . . . . Highest Temperature 444 | . 35 81 444 222 Average Temperature 87 | . 11 49 123 64 Received Heat Transfer 681 | . 243 189 222 27 Effects 1 | . . . 1 . Shutdowns 1 | . . . 1 . Siege Activations . | . . . . . Martial Activations . | . . . . . Shielding Activations . | . . . . . Robots Disrupted . | . . . . . Combat Hostiles . | . . . . . Robots Corrupted . | . . . . . Combat Hostiles . | . . . . . Parts Fried 1 | . . . 1 . Impact Corruptions . | . . . . . Robots Melted . | . . . . . Combat Hostiles . | . . . . . Parts Melted 1 | . . 1 . . Heat Transferred 1440 | . . 335 994 111 Parts Sabotaged . | . . . . . Parts Stolen . | . . . . . Parts Stripped . | . . . . . Power Chain Reactions 2 | . . . 2 . Alert | -11 -10 -10 -9 -8 ------- Run | Yrd Mat Min Mat Mat Maximum Alert Level 1 | . . . 1 1 Low Security (%) 74 | 100 100 100 66 44 Level 1 25 | . . . 33 55 Level 2 . | . . . . . Level 3 . | . . . . . Level 4 . | . . . . . Level 5 . | . . . . . High Security . | . . . . . Max Security . | . . . . . Peak Influence 259 | 5 182 78 259 246 Initial 104 | . . 58 . 104 Average 125 | . 79 47 160 168 Influence Increases 1353 | 5 309 100 663 276 Destroy 0b10 Robot/C 800 | . 180 80 440 100 Destroy 0b10 Robot/NC 60 | 5 10 . 30 15 Destroy Leader 224 | . 44 20 104 56 Successful Hack 9 | . . . 5 4 Disable Machine 30 | . . . 15 15 Destroy Structure 35 | . . . 9 26 Partial Spotted 60 | . . . 15 45 Lose Combat Pursuer 135 | . 75 . 45 15 Influence Decreases 1153 | 5 158 251 414 325 Entered New Map 238 | . . 93 . 145 Time Decay 845 | 5 158 108 394 180 Lost Part 30 | . . 10 20 . Lost Ally 40 | . . 40 . . Squads Dispatched 3 | . . . 3 . Investigation 1 | . . . 1 . Extermination . | . . . . . Reinforcement 2 | . . . 2 . Assault . | . . . . . Garrison . | . . . . . Intercept . | . . . . . Searches Triggered . | . . . . . Construction Impeded . | . . . . . Haulers Reinforced . | . . . . . Active Scanning Responses . | . . . . . Cargo Convoy Interrupts . | . . . . . Stealth | -11 -10 -10 -9 -8 --------- Run | Yrd Mat Min Mat Mat Distress Signals 8 | . 1 . 5 2 Communications Jammed . | . . . . . Distress Signals . | . . . . . Times Spotted 85 | . 14 20 35 16 Peak Tracking Total 17 | . 3 17 8 7 Tactical Retreats 9 | . 5 . 3 1 Traps | -11 -10 -10 -9 -8 ------- Run | Yrd Mat Min Mat Mat Traps Triggered 1 | . . . 1 . Indirectly . | . . . . . Trap Hack Attempts . | . . . . . Triggered . | . . . . . Disarmed . | . . . . . Reprogrammed . | . . . . . Reused . | . . . . . Traps Extracted . | . . . . . Installed . | . . . . . Triggered . | . . . . . Machines | -11 -10 -10 -9 -8 ---------- Run | Yrd Mat Min Mat Mat Machines Disabled 2 | . . . 1 1 Max in Single Turn 1 | . . . 1 1 Machines Repaired . | . . . . . Machines Dismantled . | . . . . . Machines Sabotaged . | . . . . . Overloaded Fab Kills . | . . . . . Hacking | -11 -10 -10 -9 -8 --------- Run | Yrd Mat Min Mat Mat Machines Accessed 12 | . 3 . 3 6 Terminals 9 | . 3 . 2 4 Fabricators . | . . . . . Repair Stations 1 | . . . 1 . Recycling Units . | . . . . . Scanalyzers 1 | . . . . 1 Garrison Access 1 | . . . . 1 Total Hacks 39 | . 5 . 11 23 Successful 22 | . 3 . 5 14 Failed 17 | . 2 . 6 9 Catastrophic 2 | . 1 . 1 . Database Lockouts . | . . . . . Manual 15 | . 5 . 3 7 Terminals 28 | . 5 . 8 15 Fabricators . | . . . . . Repair Stations 3 | . . . 3 . Recycling Units . | . . . . . Scanalyzers 6 | . . . . 6 Garrison Access 2 | . . . . 2 Terminal Hacks 9 | . . . 2 7 Prototype ID Bank 1 | . . . . 1 Terminal Index 1 | . . . . 1 Alert Level 1 | . . . . 1 Locate Traps 1 | . . . . 1 Maintenance Status 1 | . . . 1 . Hauler Manifests 1 | . . . . 1 Zone Layout 3 | . . . 1 2 Fabricator Hacks . | . . . . . Repair Station Hacks 1 | . . . 1 . Scan Component 1 | . . . 1 . Recycling Unit Hacks . | . . . . . Scanalyzer 6 | . . . . 6 Insert Component 3 | . . . . 3 Analyze 3 | . . . . 3 Garrison Access Hacks . | . . . . . Unauthorized Hacks 6 | . 3 . 2 1 Terminals 6 | . 3 . 2 1 Botnet 6 | . 3 . 2 1 Fabricators . | . . . . . Repair Stations . | . . . . . Recycling Units . | . . . . . Scanalyzers . | . . . . . Garrison Access . | . . . . . Data Cores Recovered . | . . . . . Used . | . . . . . Hacking Detections 9 | . 2 . 3 4 Full Trace Events 1 | . . . 1 . Feedback Events . | . . . . . Feedback Blocked . | . . . . . Robot Schematics Acquired . | . . . . . Robots Built . | . . . . . Authchips . | . . . . . Time . | . . . . . Total Robot Build Rating . | . . . . . Part Schematics Acquired 3 | . . . . 3 Parts Built . | . . . . . Authchips . | . . . . . Time . | . . . . . Total Part Build Rating . | . . . . . Parts Repaired . | . . . . . Time . | . . . . . Parts Recycled . | . . . . . Recycled Matter . | . . . . . Retrieved Matter . | . . . . . Retrieved Components . | . . . . . Parts Scanalyzed 3 | . . . . 3 Part Schematics Acquired 3 | . . . . 3 Parts Damaged . | . . . . . Bothacking | -11 -10 -10 -9 -8 ------------ Run | Yrd Mat Min Mat Mat Used RIF Installer . | . . . . . Robots Hacked . | . . . . . Non-combat . | . . . . . Combat . | . . . . . Robot Hacks Applied . | . . . . . Relay Couplers Released . | . . . . . Fabnet Peak Effective % . | . . . . . Robots Rewired . | . . . . . Allies Hacked . | . . . . . Hacks Repelled . | . . . . . Allies | -11 -10 -10 -9 -8 -------- Run | Yrd Mat Min Mat Mat Total Allies 2 | . . 2 . . Largest Group . | . . . . . Highest-Rated Group . | . . . . . Highest-Rated Ally . | . . . . . Total Orders . | . . . . . Ally Attacks 2 | . . 2 . . Total Damage . | . . . . . Kills . | . . . . . Allies Corrupted . | . . . . . Allies Melted . | . . . . . Intel | -11 -10 -10 -9 -8 ------- Run | Yrd Mat Min Mat Mat Active Infowar (turns) 1378 | 19 341 . 967 51 Optics 827 | . . . 776 51 Sensors 260 | . . . 260 . Seismic 360 | 19 341 . . . Robot Analysis Total . | . . . . . Derelict Logs Recovered . | . . . . . Drone Launches . | . . . . . Drone Recoveries . | . . . . . Exploration | -11 -10 -10 -9 -8 ------------- Run | Yrd Mat Min Mat Mat Turns Passed 2096 | 109 417 225 968 377 Spaces Moved 1588 | 59 158 95 460 816 Core 15 | 15 . . . . Treads 608 | 44 158 88 318 . Legs 149 | . . 7 142 . Wheels . | . . . . . Hover . | . . . . . Flight 816 | . . . . 816 Fastest Speed 26 | 50 160 120 120 26 Average Speed 86 | 132 160 157 147 26 Slowest Speed 160 | 160 160 160 160 66 Overloaded Moves . | . . . . . Propulsion Burnouts . | . . . . . Robots Hopped 9 | . . . . 9 Potential Cave-ins . | . . . . . Cave-ins Triggered . | . . . . . Exploration Rate (%) 30 | 4 27 26 54 41 Regions Visited 4 Branch Regions 1 Pre-discovered Areas . | . . . . . Known Exits Taken . | . . . . . Unknown Exits Taken 4 | 1 1 1 1 . Scrap Searched 1 | . . 1 . . Spaces Dug 3 | . . . . 3 Terrain Destroyed 45 | . . . 6 39 Melee 3 | . . . . 3 Projectile . | . . . . . AOE 42 | . . . 6 36 Terrain Rammed . | . . . . . Walls Destroyed . | . . . . . Machines Disabled . | . . . . . Actions | -11 -10 -10 -9 -8 --------- Run | Yrd Mat Min Mat Mat Total 2039 | 83 251 133 633 939 Wait 175 | 4 38 15 54 64 Move 1566 | 58 157 94 459 798 Hop 9 | . . . . 9 Pick Up 37 | 10 5 1 18 3 Fast Attach 14 | 3 1 . 8 2 Attach 21 | 4 . 1 5 11 Detach 11 | . . . . 11 Swap 25 | 1 3 4 9 8 Drop 38 | . 6 . 24 8 Fire 125 | 3 41 18 56 7 Melee 18 | . . . . 18 Ram . | . . . . . Kick . | . . . . . Crush . | . . . . . Escape Stasis . | . . . . . Rewire . | . . . . . Trap . | . . . . . Miscellaneous . | . . . . . Route ------- -11/Scrapyard -10/Materials -10/Mines -9/Materials (discovered 3 exits: *Mat x2 / [*Min]) -8/Materials (discovered 1 exit: [*Fac]) History --------- Turn | Location | Event 4 | -11/Scrapyard | Discovered new exit (range 16) 110 | -11/Scrapyard | Entered Materials 316 | -10/Materials | Build established: Mutant 425 | -10/Materials | Discovered new exit (range 16) 527 | -10/Materials | Entered Mines 546 | -10/Mines | Core integrity fell below 50% 727 | -10/Mines | Assembled infested the area 736 | -10/Mines | Discovered new exit (range 11) 747 | -10/Mines | Core integrity fell below 20% 752 | -10/Mines | Entered Materials 752 | -9/Materials | Evolved 2 slots: Utility x1, Weapon x1 976 | -9/Materials | Discovered new exit (range 6) 1089 | -9/Materials | Discovered new exit (range 11) 1554 | -9/Materials | Build established: Scavenger-Tank 1637 | -9/Materials | Discovered new exit (range 13) 1720 | -9/Materials | Entered another Materials area 1720 | -8/Materials | Evolved 2 slots: Propulsion x2 2014 | -8/Materials | Build established: Hacker-Sprinter 2041 | -8/Materials | Discovered new exit (range 15) 2097 | -8/Materials | Self-destructed Last Messages --------------- >>Insert(Imp. VTOL Module) Scanning Imp. VTOL Module... Ready to analyze. >>Scanalyze Scanning: Imp. VTOL Module... Schematic downloaded. >>Insert(Imp. Grenade Launcher) Scanning Imp. Grenade Launcher... Ready to analyze. >>Scanalyze Scanning: Imp. Grenade Launcher... Schematic downloaded. 02085_ Connecting with Scanalyzer... >>Insert(Scythe) Scanning Scythe... Ready to analyze. >>Scanalyze Scanning: Scythe... Schematic downloaded. 02087_ Acquired Imp. Utility Shielding. Map ----- +----------------------------------------------------+ | ????# ??????????????????? ??? | | ????# ???#######???????"" #?? | | #+### #### ###### """ #?? | | / """ #?? | | * #### # #?? | | #??# #?? #?? | | ######+### #??# ########## | | #??? ## ##??# ## # | | #? ## #???# ## * "" # | | ## !!! ## #???# ## ""S # | | ## !! ## #???# ## "" # | | ## !! ## #???# ## # | | ## ## #???# !# # | | ########### #####=!/ # | | #%!# """ # | | < #!!# """ # | | # # """ # | | ################### # # | | #?????????????????# ######### | | #?????????????????# # # | | ###?????????????????# # """ # | | ##??????????????????# # "T" # | | #??????????????????# # " " # | | #??????????????????# # # | | #??????????????????# # # | | #??????????????????# #!@ # | | #??????????????????# # """ # | | #??????????????????+ # """ # | | ##??????????????????# # """ # | | ????????????????????# + # | | ????????????????????# ######### | | ????????????????????# #???????? | | ????????????????????# #???????? | | ????????????????????# #???????? | | ##??????????????????+ +???????? | | #??????????????????# #???????? | | "#??????????????????# #???????? | | "#?????###??????????# ????????? | | "####### ###????????# ????????? | | # #????????# ????????? | | # """ #????????# ????????? | | ## "Y" """ #????????? ????????? | | # """ #????????? ????????? | | + """ #????????? ????????? | | # #???????????????????? | | # !#???????????????????? | | # #???????????????????? | | ####+######???????????????????? | | #?## #########????????????????? | | ### # #????????????????? | +----------------------------------------------------+ Best States ------------- Heat Dissipation 42 Energy Generation 14 Energy Capacity 275 Matter Stores 300 Matter Capacity 300 Sight Range 18 Robot Scan Range 14 Terrain Scan Density 10 Armor Coverage 150 Utility Shielding 66 Evasion (%) 64 Recoil Reduction 2 Offensive Hacking 10 Defensive Hacking 10 Item Schematics ----------------- Imp. VTOL Module | -8/Materials | Scanalyzed Imp. Grenade Launcher | -8/Materials | Scanalyzed Scythe | -8/Materials | Scanalyzed Robot Schematics ------------------ None Fabricated ------------ Nothing Repaired ---------- Nothing Alien Tech Used ----------------- None Achievements -------------- None Challenges ------------ None Game ------ Seed WeightJammingInterpreter Manual? 0 Play Time 00:54:01 Cumulative 127.3 hours Start 2025.05.31 @ 12:51:29 End 2025.07.16 @ 03:40:18 Sessions 3 Manual Loads 0 Difficulty Rogue Special Mode None Game No. 124 Rogue 124 Adventurer 0 Explorer 0 Win Type - Total 1 Types 1/0/0/0/0/0/0/0/0/0 Lore% 20 Gallery% 43 Achievement% 42 Wizard Run 0 Options --------- Layout 0 ASCII 0 Keyboard 0 Movement Mouse Keybinds 0 Fullscreen 2 Font 18/SmallcapsGlow Map View 76x50 Zoom Use 64% Tactical HUD 1 Map Filters NONE Filters NONE Steam 1 RUN: 06ba289a-2096-4c4d-80e7-b81988202827